bitfinex/quotes_BTCUSD_20220218
["timestamp","ask_amount","ask_price","bid_price","bid_amount"]
[1645184530282,0.27574058,40231.0,40223.0,0.062166]
[1645184530487,0.00098283,40228.0,40223.0,0.062166]
[1645184531087,0.00098283,40228.0,40224.0,0.0246508]
[1645184531281,0.27574058,40231.0,40224.0,0.0246508]
[1645184531482,0.00024573,40228.0,40224.0,0.0246508]
[1645184531682,0.00024573,40228.0,40225.0,0.062166]
[1645184531886,0.00024573,40228.0,40225.0,0.362166]
[1645184532087,0.00098278,40234.0,40225.0,0.362166]
[1645184532088,0.00098278,40234.0,40227.0,0.85]
[1645184532287,0.00098278,40234.0,40228.0,0.0458]
[1645184532485,0.39091596,40252.0,40229.0,0.3]
[1645184532683,0.5076,40255.0,40243.0,0.25035739]
[1645184532684,0.65883602,40251.0,40243.0,0.25035739]
[1645184532885,0.65883602,40251.0,40245.0,0.062131]
[1645184532886,0.00853602,40251.0,40245.0,0.062131]
[1645184533387,0.00853602,40251.0,40246.0,0.0458]
[1645184533583,0.30020671,40253.0,40250.0,0.19904579]
[1645184533584,0.00020671,40253.0,40250.0,0.19904579]
[1645184534028,0.00020671,40253.0,40251.0,0.124243]
[1645184534425,0.21228726,40263.0,40251.0,0.1488938]
[1645184534628,0.34471447,40260.0,40252.0,0.06212]
[1645184535127,0.21228726,40263.0,40252.0,0.06212]
[1645184535329,0.21228726,40263.0,40255.0,0.062115]
[1645184535633,0.01,40263.0,40255.0,0.062115]
[1645184536030,0.34083445,40263.0,40255.0,0.062115]
[1645184536627,0.01,40263.0,40255.0,0.062115]
[1645184537127,0.20064067,40264.0,40255.0,0.062115]
[1645184537328,0.20064067,40264.0,40251.0,0.42822547]
[1645184537329,0.20064067,40264.0,40256.0,0.0246508]
[1645184537582,0.00017525,40261.0,40256.0,0.0246508]
[1645184537981,0.20692535,40258.0,40256.0,0.0246508]
[1645184538579,0.062131,40261.0,40256.0,0.0246508]
[1645184538780,0.22621437,40257.0,40256.0,0.0246508]
[1645184539383,0.52621437,40257.0,40256.0,0.0246508]
[1645184539584,0.62621436,40257.0,40247.0,0.0002581]
[1645184539783,0.31876169,40254.0,40247.0,0.0002581]
[1645184539980,0.3,40253.0,40247.0,0.0005162]
[1645184540180,0.49342352,40250.0,40247.0,0.0002581]
[1645184540384,0.2096,40256.0,40247.0,0.0001861]
[1645184540582,0.2096,40256.0,40247.0,0.1244441]
[1645184540583,0.0098,40256.0,40247.0,0.1244441]
[1645184540981,0.0098,40256.0,40247.0,0.124258]
[1645184541431,0.0098,40256.0,40253.0,0.06212]
[1645184541634,0.00084852,40257.0,40253.0,0.06212]
[1645184542432,0.00084852,40257.0,40253.0,0.07122]
[1645184542433,0.00110655,40257.0,40253.0,0.07122]
[1645184543234,0.00084852,40257.0,40253.0,0.07122]
[1645184543634,0.00102369,40257.0,40253.0,0.07122]
[1645184543833,0.00102369,40257.0,40253.0,0.37122]
[1645184544540,0.00084852,40257.0,40254.0,0.0458]
[1645184544738,0.61760052,40267.0,40257.0,0.00169703]
[1645184544976,0.61760052,40267.0,40261.0,0.062098]
[1645184545177,0.61760052,40267.0,40263.0,0.23266561]
[1645184545377,0.00070052,40267.0,40263.0,0.23266561]
[1645184545576,0.00070052,40267.0,40264.0,0.0095]
[1645184545775,0.33615299,40272.0,40264.0,0.0095]
[1645184545979,0.00017517,40267.0,40264.0,0.071598]
[1645184546176,0.08398839,40275.0,40264.0,0.071598]
[1645184547078,0.37893485,40275.0,40264.0,0.071598]
[1645184547476,0.07398839,40275.0,40264.0,0.071598]
[1645184547678,0.07398839,40275.0,40264.0,0.062098]
[1645184548178,0.13609339,40275.0,40264.0,0.062098]
[1645184548379,0.12398839,40275.0,40264.0,0.062098]
[1645184548830,0.07398839,40275.0,40264.0,0.062098]
[1645184549232,0.0095,40275.0,40264.0,0.422098]
[1645184549629,0.05,40283.0,40264.0,0.522098]
[1645184550033,0.30983941,40275.0,40264.0,0.422098]
[1645184550232,0.25324046,40278.0,40264.0,0.522098]
[1645184550430,0.52831292,40278.0,40264.0,0.522098]
[1645184550630,0.57831292,40278.0,40264.0,0.522098]
[1645184550832,0.00025857,40275.0,40264.0,0.52235664]
[1645184551632,0.00025857,40275.0,40264.0,0.522098]
[1645184551831,0.3,40277.0,40264.0,0.522098]
[1645184551832,0.2550559,40271.0,40264.0,0.522098]
[1645184552030,0.2550559,40271.0,40264.0,0.52235664]
[1645184552230,0.00025857,40275.0,40264.0,0.52235664]
[1645184552883,0.2424864,40277.0,40264.0,0.522098]
[1645184553084,0.00017443,40275.0,40264.0,0.822098]
[1645184553285,0.25193501,40273.0,40264.0,0.822098]
[1645184553485,0.00017443,40275.0,40264.0,0.822098]
[1645184553889,0.00017443,40275.0,40265.0,0.0458]
[1645184554191,0.32507246,40278.0,40268.0,0.062092]
[1645184554386,0.00017443,40275.0,40268.0,0.062092]
[1645184554990,0.00017443,40275.0,40269.0,0.01]
[1645184555490,0.1,40278.0,40269.0,0.26364965]
[1645184555688,0.00025922,40275.0,40271.0,0.062089]
[1645184555888,0.00025922,40275.0,40271.0,0.107889]
[1645184556345,0.00025922,40275.0,40272.0,0.01337616]
[1645184556540,0.63300963,40289.0,40273.0,0.232031]
[1645184556737,0.009,40288.0,40273.0,0.232031]
[1645184556935,0.00025923,40275.0,40273.0,0.232031]
[1645184557334,0.00025923,40275.0,40273.0,0.282031]
[1645184557535,0.00025923,40275.0,40273.0,0.294105]
[1645184557737,0.009,40288.0,40273.0,0.294105]
[1645184557935,0.009,40288.0,40281.0,0.21658233]
[1645184558138,0.00103667,40285.0,40282.0,0.0098]
[1645184558840,0.00103667,40285.0,40277.0,0.0458]
[1645184559046,0.29404782,40288.0,40277.0,0.062089]
[1645184559437,0.00025921,40286.0,40277.0,0.062089]
[1645184559839,0.22164319,40282.0,40277.0,0.063089]
[1645184560077,0.05,40281.0,40277.0,0.063089]
[1645184560281,0.05,40281.0,40277.0,0.001]
[1645184560282,0.04782018,40281.0,40277.0,0.001]
[1645184560483,0.14782017,40281.0,40277.0,0.001]
[1645184560678,0.0098,40280.0,40277.0,0.001]
[1645184560880,0.25352745,40279.0,40277.0,0.001]
[1645184561078,0.3,40278.0,40270.0,0.062098]
[1645184561278,0.062098,40277.0,40270.0,0.062098]
[1645184561479,0.2979474,40277.0,40270.0,0.062098]
[1645184561978,0.3479474,40277.0,40270.0,0.062098]
[1645184562282,0.3979474,40277.0,40270.0,0.062098]
[1645184562480,0.3979474,40277.0,40265.0,0.001]
[1645184562481,0.20818112,40269.0,40265.0,0.001]
[1645184562688,0.3,40268.0,40265.0,0.001]
[1645184562882,0.1,40268.0,40265.0,0.001]
[1645184563081,0.23458085,40267.0,40264.0,0.36025412]
[1645184563581,0.33796767,40266.0,40264.0,0.36025412]
[1645184563840,0.05,40265.0,40264.0,0.36125412]
[1645184564938,0.05,40265.0,40264.0,0.36025412]
[1645184565840,0.051,40265.0,40264.0,0.36025412]
[1645184566639,0.351,40265.0,40264.0,0.36025412]
[1645184566844,0.351,40265.0,40264.0,0.36]
[1645184567040,0.45,40265.0,40264.0,0.36]
[1645184567241,0.05,40265.0,40264.0,0.36]
[1645184568687,0.05,40265.0,40264.0,0.35477945]
[1645184569488,0.33796767,40266.0,40264.0,0.35477945]
[1645184569886,0.33796767,40266.0,40264.0,0.35577945]
[1645184570484,0.062115,40267.0,40264.0,0.35577945]
[1645184570687,0.062107,40269.0,40264.0,0.35577945]
[1645184570888,0.001,40270.0,40264.0,0.41788545]
[1645184571087,0.124215,40273.0,40264.0,0.41688545]
[1645184571533,0.28628075,40270.0,40264.0,0.3548646]
[1645184571928,0.32128075,40270.0,40264.0,0.3548646]
[1645184572134,0.37128075,40270.0,40264.0,0.3548646]
[1645184572329,0.05,40270.0,40264.0,0.3548646]
[1645184572530,0.05,40270.0,40264.0,0.35477945]
[1645184572531,0.1,40270.0,40264.0,0.35477945]
[1645184572831,0.062104,40271.0,40264.0,0.3548646]
[1645184573031,0.05,40270.0,40264.0,0.3548646]
[1645184573229,0.062104,40271.0,40264.0,0.3548646]
[1645184573430,0.30224365,40268.0,40264.0,0.3548646]
[1645184573629,0.062109,40268.0,40264.0,0.3548646]
[1645184573830,0.062109,40268.0,40264.0,0.35477945]
[1645184574130,0.062109,40268.0,40264.0,0.35503836]
[1645184574979,0.062109,40268.0,40264.0,0.35477945]
[1645184575179,0.062109,40268.0,40264.0,0.35503834]
[1645184575578,0.05791426,40268.0,40264.0,0.35503834]
[1645184575777,0.05,40265.0,40264.0,0.35503834]
[1645184576178,0.05,40265.0,40264.0,0.35477945]
[1645184576577,0.1,40267.0,40264.0,0.35477945]
[1645184576777,0.05,40267.0,40264.0,0.35477945]
[1645184577178,0.05,40268.0,40264.0,0.35477945]
[1645184577384,0.062112,40267.0,40264.0,0.35477945]
[1645184577779,0.162112,40267.0,40264.0,0.35577945]
[1645184579035,0.162112,40267.0,40264.0,0.35477945]
[1645184579434,0.1,40267.0,40264.0,0.35477945]
[1645184579634,0.05,40267.0,40264.0,0.35477945]
[1645184579833,0.3625648,40269.0,40264.0,0.35477945]
[1645184579834,0.4125648,40269.0,40264.0,0.35577945]
[1645184580141,0.124235,40268.0,40264.0,0.35577945]
[1645184580335,0.19517592,40265.0,40264.0,0.35577945]
[1645184580736,0.05,40265.0,40264.0,0.35577945]
[1645184580936,0.47021575,40267.0,40264.0,0.35577945]
[1645184581136,0.47021575,40267.0,40264.0,0.35477945]
[1645184581538,0.37021575,40267.0,40264.0,0.35477945]
[1645184582338,0.00205923,40265.0,40264.0,0.35477945]
[1645184585590,9.5e-07,40266.0,40265.0,0.20203429]
[1645184585790,0.07136083,40268.0,40267.0,0.0226585]
[1645184585988,0.07136083,40268.0,40267.0,0.1468415]
[1645184586735,0.07124088,40268.0,40267.0,0.1468415]
[1645184587838,0.07124088,40268.0,40267.0,0.4478415]
[1645184588333,0.07124088,40268.0,40267.0,0.5478415]
[1645184588534,0.00025902,40275.0,40274.0,0.25874398]
[1645184588934,0.00025902,40275.0,40274.0,0.32083298]
[1645184589334,0.0093,40285.0,40274.0,0.62083298]
[1645184589735,0.00025904,40277.0,40274.0,0.3]
[1645184589989,0.00025904,40277.0,40276.0,0.124157]
[1645184590584,0.062082,40286.0,40276.0,0.124157]
[1645184590785,0.124157,40292.0,40281.0,0.25673398]
[1645184590786,0.00103599,40285.0,40281.0,0.25673398]
[1645184590991,0.00103599,40285.0,40282.0,0.124144]
[1645184591185,0.00103599,40285.0,40282.0,0.424144]
[1645184591384,0.00103599,40285.0,40282.0,0.124144]
[1645184591786,0.0091,40291.0,40282.0,0.124144]
[1645184591787,0.0091,40291.0,40283.0,0.062072]
[1645184591990,0.00025902,40286.0,40283.0,0.062072]
[1645184592993,0.6051,40294.0,40283.0,0.062072]
[1645184593191,0.00025902,40287.0,40283.0,0.062072]
[1645184594235,0.25424379,40292.0,40289.0,0.22426078]
[1645184594434,0.27924379,40292.0,40290.0,0.062066]
[1645184594633,0.1,40292.0,40290.0,0.062066]
[1645184594833,0.08,40291.0,40290.0,0.062066]
[1645184595233,0.13,40291.0,40290.0,0.062066]
[1645184595439,0.08,40291.0,40290.0,0.062066]
[1645184597510,0.08,40289.0,40286.0,0.124131]
[1645184597702,0.08,40288.0,40276.0,0.12416]
[1645184597898,0.0896,40288.0,40285.0,0.001]
[1645184598101,0.33802638,40286.0,40285.0,0.001]
[1645184598302,0.43802638,40286.0,40285.0,0.001]
[1645184598497,0.53802638,40286.0,40285.0,0.001]
[1645184599101,0.08,40281.0,40279.0,0.062082]
[1645184599700,0.08,40281.0,40276.0,0.12416]
[1645184599899,0.08,40281.0,40279.0,0.001]
[1645184600201,0.08,40280.0,40279.0,0.001]
[1645184600400,0.13,40280.0,40279.0,0.001]
[1645184601000,0.3821046,40280.0,40279.0,0.001]
[1645184601237,0.13,40280.0,40272.0,0.062093]
[1645184601440,0.26474791,40279.0,40272.0,0.062093]
[1645184601638,0.08,40278.0,40272.0,0.062093]
[1645184601836,0.08,40278.0,40272.0,0.064093]
[1645184602343,0.08,40277.0,40272.0,0.064093]
[1645184602739,0.08,40277.0,40272.0,0.002]
[1645184602938,0.08025891,40277.0,40272.0,0.002]
[1645184603142,0.08025891,40277.0,40269.0,0.124183]
[1645184603342,0.08,40271.0,40269.0,0.124183]
[1645184603940,0.08,40271.0,40269.0,0.127183]
[1645184605184,0.08,40271.0,40269.0,0.124183]
[1645184605993,0.08,40271.0,40269.0,0.127183]
[1645184606686,0.08,40271.0,40270.0,0.20263079]
[1645184607485,0.08,40271.0,40270.0,0.27263079]
[1645184607686,0.08,40271.0,40270.0,0.20263079]
[1645184607886,0.08,40271.0,40270.0,0.50463079]
[1645184608490,0.08,40271.0,40270.0,0.5047394]
[1645184608933,0.08,40271.0,40270.0,0.5747394]
[1645184609136,0.08,40271.0,40270.0,0.5727394]
[1645184609334,0.08,40271.0,40270.0,0.5027394]
[1645184609935,0.08,40271.0,40270.0,0.5727394]
[1645184610135,0.08,40271.0,40270.0,0.86264891]
[1645184610337,0.00025891,40275.0,40271.0,1.23]
[1645184610540,0.00025891,40275.0,40274.0,0.17779166]
[1645184610740,0.00025891,40275.0,40274.0,0.52749166]
[1645184610936,0.00025891,40275.0,40274.0,0.23364196]
[1645184611151,0.27471936,40287.0,40277.0,0.20443451]
[1645184611438,0.00103543,40285.0,40278.0,0.0497]
[1645184612138,0.05313391,40287.0,40278.0,0.0497]
[1645184612586,0.0002532,40284.0,40278.0,0.0497]
[1645184612786,0.0002532,40284.0,40279.0,0.062073]
[1645184612986,0.0002532,40284.0,40279.0,0.111773]
[1645184613486,0.05313391,40287.0,40280.0,0.00010639]
[1645184613789,0.0002532,40284.0,40280.0,0.00010639]
[1645184614586,0.05313391,40287.0,40282.0,0.062073]
[1645184614985,0.0002532,40284.0,40282.0,0.062073]
[1645184615386,0.26161412,40283.0,40282.0,0.062073]
[1645184616235,0.05313391,40283.0,40282.0,0.062073]
[1645184617236,0.05629961,40283.0,40282.0,0.062073]
[1645184617636,0.05629961,40283.0,40282.0,0.063073]
[1645184618637,0.05629961,40283.0,40282.0,0.06317895]
[1645184618836,0.05629961,40283.0,40282.0,0.06217895]
[1645184619636,0.05629961,40283.0,40282.0,0.06317895]
[1645184620687,0.0031657,40283.0,40282.0,0.06317895]
[1645184620885,0.0031657,40283.0,40282.0,0.06217895]
[1645184622086,0.00024556,40285.0,40282.0,0.06514312]
[1645184622986,0.05313391,40288.0,40282.0,0.06514312]
[1645184623187,0.00024544,40286.0,40282.0,0.06514312]
[1645184623388,0.04337935,40288.0,40282.0,0.06514312]
[1645184623587,0.04337935,40288.0,40282.0,0.06614312]
[1645184624836,0.04337935,40288.0,40282.0,0.06514312]
[1645184625636,0.04355309,40288.0,40282.0,0.06514312]
[1645184626637,0.04337935,40288.0,40282.0,0.06514312]
[1645184626841,0.04363823,40288.0,40282.0,0.06514312]
[1645184627338,0.04363823,40288.0,40284.0,0.0015359]
[1645184627588,0.04363823,40288.0,40285.0,0.062071]
[1645184627788,0.04337935,40288.0,40285.0,0.062071]
[1645184627992,0.04363824,40288.0,40284.0,0.0015359]
[1645184628589,0.04363824,40288.0,40284.0,0.00164141]
[1645184628790,0.10571424,40288.0,40284.0,0.00164141]
[1645184629091,0.25510438,40285.0,40284.0,0.00164141]
[1645184629290,0.30510438,40285.0,40284.0,0.00164141]
[1645184629793,0.30510438,40285.0,40284.0,0.00264141]
[1645184630792,0.30510438,40285.0,40284.0,0.00164141]
[1645184631245,0.09337935,40285.0,40284.0,0.00164141]
[1645184631647,0.09337935,40285.0,40284.0,0.00264141]
[1645184631945,0.09337935,40285.0,40284.0,0.00110551]
[1645184632946,0.09337935,40285.0,40284.0,0.00010551]
[1645184633548,0.09337935,40285.0,40284.0,0.001]
[1645184633948,0.44732464,40285.0,40284.0,0.001]
[1645184634148,0.04337935,40285.0,40284.0,0.001]
[1645184634992,0.03837935,40285.0,40283.0,0.06207]
[1645184635190,0.05919236,40285.0,40283.0,0.06207]
[1645184637295,0.05919236,40285.0,40284.0,0.0032315]
[1645184638491,0.05919236,40285.0,40284.0,0.00333701]
[1645184641639,0.05919236,40285.0,40284.0,0.00433701]
[1645184642040,0.06381748,40285.0,40284.0,0.00110551]
[1645184642892,0.06381748,40285.0,40284.0,0.00010551]
[1645184643592,0.06381748,40285.0,40283.0,0.06217551]
[1645184644195,0.00154771,40286.0,40285.0,0.12763496]
[1645184645697,0.00154771,40286.0,40285.0,0.12863496]
[1645184645898,0.14644771,40287.0,40285.0,0.12863496]
[1645184646742,0.04654771,40287.0,40285.0,0.12863496]
[1645184646944,0.04654771,40287.0,40285.0,0.12763496]
[1645184647141,0.29722392,40288.0,40285.0,0.25176496]
[1645184647341,0.34748261,40288.0,40285.0,0.25176496]
[1645184647546,0.34748261,40288.0,40285.0,0.25376496]
[1645184648143,0.34722392,40288.0,40285.0,0.25376496]
[1645184649043,0.34722392,40288.0,40285.0,0.25176496]
[1645184651494,0.34440521,40288.0,40285.0,0.25176496]
[1645184652098,0.04718129,40288.0,40287.0,0.00290411]
[1645184652296,0.00025869,40289.0,40287.0,0.00290411]
[1645184652896,0.00025869,40289.0,40288.0,0.062064]
[1645184653099,0.35,40291.0,40288.0,0.062064]
[1645184653297,0.00025869,40290.0,40288.0,0.062064]
[1645184653598,0.25614708,40289.0,40287.0,0.00290411]
[1645184653854,0.30614708,40289.0,40287.0,0.00290411]
[1645184654655,0.30614708,40289.0,40287.0,0.06496811]
[1645184655056,0.05,40289.0,40287.0,0.06496811]
[1645184655262,0.00025869,40290.0,40287.0,0.06496811]
[1645184655460,0.05,40293.0,40287.0,0.06496811]
[1645184655661,0.00025869,40290.0,40287.0,0.06496811]
[1645184656659,0.121867,40294.0,40287.0,0.06496811]
[1645184656860,0.00025869,40291.0,40287.0,0.06496811]
[1645184657060,0.00025869,40291.0,40290.0,0.00144352]
[1645184657893,0.0098,40294.0,40291.0,0.062061]
[1645184658089,0.7058,40295.0,40291.0,0.062061]
[1645184658090,0.00025868,40293.0,40291.0,0.062061]
[1645184658691,0.00025868,40293.0,40292.0,0.3]
[1645184658996,0.0091,40299.0,40291.0,0.111758]
[1645184659390,0.00025868,40295.0,40291.0,0.111758]
[1645184659590,0.00025868,40295.0,40291.0,0.113758]
[1645184660294,0.00034657,40300.0,40291.0,0.113758]
[1645184660498,0.00025848,40295.0,40291.0,0.113758]
[1645184660893,0.00025848,40295.0,40291.0,0.111758]
[1645184661095,0.00025848,40295.0,40292.0,0.3]
[1645184661342,0.00034657,40300.0,40293.0,0.0497]
[1645184661542,0.00034657,40300.0,40295.0,0.062048]
[1645184661745,0.00034657,40300.0,40296.0,0.0093]
[1645184661944,0.00034657,40300.0,40297.0,0.124094]
[1645184662344,0.00034657,40300.0,40299.0,0.20725377]
[1645184662745,0.00034657,40300.0,40299.0,0.25695377]
[1645184665094,0.00034657,40300.0,40299.0,0.55695377]
[1645184665895,0.00034657,40300.0,40299.0,0.54699294]
[1645184666295,0.00034657,40300.0,40299.0,0.24699294]
[1645184667294,0.00034657,40300.0,40299.0,0.25324847]
[1645184668599,0.00034657,40300.0,40299.0,0.29027994]
[1645184669640,0.00034657,40300.0,40299.0,0.29327994]
[1645184670644,0.00034657,40300.0,40299.0,0.25624847]
[1645184670843,0.00034657,40300.0,40299.0,0.25324847]
[1645184671741,0.00034657,40300.0,40299.0,0.05895553]
[1645184671941,0.00181366,40300.0,40299.0,0.0527]
[1645184672691,0.00181366,40300.0,40299.0,0.3527]
[1645184672891,0.00181366,40300.0,40299.0,0.3497]
[1645184673493,0.00181366,40300.0,40299.0,0.0497]
[1645184673696,0.00181366,40300.0,40299.0,0.0527]
[1645184674295,0.00103372,40308.0,40307.0,0.062038]
[1645184674695,0.18206213,40312.0,40307.0,0.062038]
[1645184675394,0.32362572,40310.0,40307.0,0.062038]
[1645184675592,0.42362572,40310.0,40307.0,0.062038]
[1645184677240,0.05,40310.0,40307.0,0.062038]
[1645184677643,0.05,40311.0,40307.0,0.064038]
[1645184677845,0.12002413,40312.0,40307.0,0.064038]
[1645184678243,0.42396594,40312.0,40307.0,0.064038]
[1645184678445,0.12019717,40312.0,40308.0,0.0497]
[1645184678645,0.07019717,40312.0,40308.0,0.0497]
[1645184679244,0.02019717,40312.0,40308.0,0.0497]
[1645184679447,0.02019717,40312.0,40308.0,0.3497]
[1645184679448,0.02002413,40312.0,40308.0,0.3497]
[1645184679647,0.02019717,40312.0,40308.0,0.538762]
[1645184680291,0.02019717,40312.0,40308.0,0.588762]
[1645184680692,0.02002413,40312.0,40308.0,0.588762]
[1645184680893,0.02019717,40312.0,40308.0,0.585762]
[1645184681898,0.02002413,40312.0,40308.0,0.59077289]
[1645184682100,0.02028264,40312.0,40309.0,0.00172174]
[1645184682296,0.02028264,40312.0,40310.0,0.0497]
[1645184682496,0.02028264,40312.0,40311.0,0.062022]
[1645184682697,0.02028264,40312.0,40311.0,0.111722]
[1645184683099,0.02002413,40312.0,40311.0,0.111722]
[1645184687048,0.02002413,40312.0,40311.0,0.062022]
[1645184687251,0.02002413,40312.0,40311.0,0.06921099]
[1645184689691,0.02002413,40312.0,40311.0,0.07221099]
[1645184691100,0.02002413,40312.0,40311.0,0.06921099]
[1645184695693,0.02002413,40312.0,40311.0,0.07221099]
[1645184696893,0.02002413,40312.0,40311.0,0.06921099]
[1645184697098,0.02002413,40312.0,40311.0,0.062022]
[1645184697293,0.02126652,40312.0,40311.0,0.062022]
[1645184698747,0.02126652,40312.0,40311.0,0.06194516]
[1645184699757,0.02126652,40312.0,40311.0,0.06394516]
[1645184699951,0.06902652,40312.0,40311.0,0.002]
[1645184700152,0.26499651,40312.0,40311.0,0.002]
[1645184700349,0.31499651,40312.0,40311.0,0.002]
[1645184700746,1.28688415,40312.0,40311.0,0.002]
[1645184700947,1.28688415,40312.0,40306.0,0.01439778]
[1645184701147,0.124089,40311.0,40306.0,0.01439778]
[1645184701348,0.04994,40310.0,40306.0,0.00379778]
[1645184701745,0.04994,40310.0,40306.0,0.00579778]
[1645184702244,0.35,40309.0,40306.0,0.00579778]
[1645184702502,0.474089,40309.0,40306.0,0.00579778]
[1645184702994,0.474089,40309.0,40306.0,0.00379778]
[1645184703794,0.174089,40309.0,40306.0,0.00579778]
[1645184704094,0.112044,40309.0,40306.0,0.00579778]
[1645184704293,0.04994,40310.0,40309.0,0.22408799]
[1645184704696,0.05,40311.0,40309.0,0.22408799]
[1645184705000,0.4159908,40312.0,40309.0,0.22408799]
[1645184705194,0.3489518,40312.0,40309.0,0.22408799]
[1645184705395,0.0695868,40312.0,40309.0,0.22408799]
[1645184705596,0.0834076,40312.0,40309.0,0.22408799]
[1645184705899,0.08314948,40312.0,40309.0,0.22508799]
[1645184706342,0.4316813,40312.0,40309.0,0.22508799]
[1645184706945,0.4316813,40312.0,40309.0,0.22408799]
[1645184707143,0.05,40311.0,40309.0,0.22408799]
[1645184707742,0.05,40311.0,40309.0,0.22508799]
[1645184707942,0.05,40311.0,40309.0,0.21508799]
[1645184708942,0.05,40311.0,40309.0,0.21408799]
[1645184709143,0.05,40311.0,40310.0,0.53046962]
[1645184709745,0.05,40311.0,40310.0,0.53146962]
[1645184710993,0.05,40311.0,40310.0,0.53046962]
[1645184711795,0.05,40311.0,40310.0,0.53505012]
[1645184711995,0.05,40311.0,40310.0,0.53687303]
[1645184712805,0.08206413,40312.0,40310.0,0.53687303]
[1645184713006,0.02002413,40312.0,40310.0,0.58557303]
[1645184713200,0.01502413,40312.0,40310.0,0.58557303]
[1645184713846,0.01502413,40312.0,40311.0,0.062024]
[1645184714147,0.01502413,40312.0,40311.0,0.111724]
[1645184714546,0.01502413,40312.0,40311.0,0.64219362]
[1645184714946,0.01502413,40312.0,40311.0,0.90193893]
[1645184715353,0.0009996,40313.0,40312.0,0.6]
[1645184715551,0.0009996,40313.0,40312.0,0.0497]
[1645184717610,0.0009996,40313.0,40312.0,0.44267]
[1645184717811,0.0009996,40313.0,40312.0,0.54267]
[1645184718411,0.0009996,40313.0,40312.0,0.24267]
[1645184719013,0.0009996,40313.0,40312.0,0.14267]
[1645184719411,0.0009996,40313.0,40312.0,0.44267]
[1645184719612,0.0009996,40313.0,40312.0,0.63989637]
[1645184719811,0.0009996,40313.0,40312.0,1.27236599]
[1645184720014,0.0497866,40315.0,40312.0,1.07513962]
[1645184720216,0.0497866,40315.0,40313.0,0.186025]
[1645184720414,0.04952783,40315.0,40314.0,0.34908201]
[1645184720620,0.00103491,40322.0,40315.0,0.03904]
[1645184720817,0.00103491,40322.0,40316.0,0.0594]
[1645184721014,0.00103491,40322.0,40321.0,0.24909458]
[1645184721245,0.00103491,40322.0,40321.0,0.29879458]
[1645184721449,0.00992096,40333.0,40321.0,0.0497]
[1645184721647,0.00992096,40333.0,40321.0,0.30895866]
[1645184721848,0.00992096,40333.0,40321.0,0.47495366]
[1645184722248,0.00052096,40333.0,40321.0,0.47495366]
[1645184722450,5.6e-06,40324.0,40322.0,1.9817073]
[1645184722650,0.00052096,40333.0,40322.0,1.9817073]
[1645184722651,0.00052096,40333.0,40323.0,0.27368]
[1645184722849,0.00052096,40333.0,40324.0,0.01680696]
[1645184723048,0.00037513,40332.0,40326.0,0.05]
[1645184723254,0.00037513,40330.0,40329.0,0.23895885]
[1645184723448,0.00135853,40331.0,40329.0,0.28865885]
[1645184723651,0.0009834,40331.0,40329.0,0.28865885]
[1645184723848,0.0009834,40331.0,40329.0,0.29165885]
[1645184725102,0.0009834,40331.0,40330.0,0.53046962]
[1645184725300,0.0009834,40331.0,40330.0,0.58016962]
[1645184725502,0.0009834,40331.0,40330.0,0.98016962]
[1645184725905,0.0009834,40331.0,40330.0,0.98516962]
[1645184726701,0.00089609,40333.0,40330.0,0.68516962]
[1645184726702,1.822e-05,40333.0,40330.0,0.68516962]
[1645184726904,0.0001738,40334.0,40331.0,0.07884374]
[1645184727104,0.0001738,40334.0,40332.0,0.0656403]
[1645184727305,0.00096768,40335.0,40333.0,0.55629961]
[1645184727604,0.00096768,40335.0,40334.0,0.0497]
[1645184728002,0.80545272,40350.0,40335.0,0.461971]
[1645184728202,0.80545272,40350.0,40335.0,0.511671]
[1645184728400,0.80545272,40350.0,40335.0,0.611671]
[1645184728604,7.6e-07,40336.0,40335.0,1.58978657]
[1645184728850,0.0999,40353.0,40339.0,0.123937]
[1645184729047,0.10118152,40353.0,40349.0,0.2173549]
[1645184730047,0.10118152,40353.0,40350.0,0.061969]
[1645184730248,0.0914256,40353.0,40350.0,0.061969]
[1645184730450,0.0864256,40353.0,40352.0,0.53046962]
[1645184730648,0.0015256,40353.0,40352.0,0.58016962]
[1645184731257,0.00128152,40353.0,40352.0,0.58016962]
[1645184732925,0.00128152,40353.0,40352.0,0.95184062]
[1645184733124,1.52e-06,40353.0,40352.0,0.95184062]
[1645184733623,0.0002619,40362.0,40352.0,1.25184062]
[1645184733827,0.00017231,40355.0,40354.0,0.05]
[1645184734023,0.00017231,40355.0,40354.0,0.0997]
[1645184734225,0.00017231,40355.0,40354.0,0.28562995]
[1645184734523,0.00068915,40361.0,40359.0,0.00034462]
[1645184734723,0.0002619,40362.0,40360.0,0.0497]
[1645184735124,0.0002619,40362.0,40360.0,0.111648]
[1645184735723,0.0002619,40362.0,40361.0,0.53040962]
[1645184735927,0.0001619,40362.0,40361.0,0.98010962]
[1645184736127,0.40383274,40363.0,40361.0,0.98010962]
[1645184736354,0.40383274,40363.0,40361.0,0.68010962]
[1645184736952,0.40383274,40363.0,40361.0,1.15197961]
[1645184737353,0.0011148,40363.0,40362.0,0.19702112]
[1645184737551,0.0011148,40363.0,40362.0,0.37057412]
[1645184737752,0.0008136,40369.0,40362.0,0.37057412]
[1645184737956,0.10909999,40385.0,40368.0,1.2]
[1645184737957,0.0010366,40381.0,40368.0,1.2]
[1645184738165,0.0010366,40381.0,40370.0,0.061917]
[1645184738354,0.0010366,40381.0,40377.0,0.29455396]
[1645184738552,0.0010366,40381.0,40377.0,0.11658]
[1645184739153,0.0010366,40381.0,40377.0,0.12158]
[1645184740207,0.0010366,40381.0,40378.0,0.43301035]
[1645184740408,0.02047293,40386.0,40379.0,0.297293]
[1645184740409,0.0008976,40386.0,40379.0,0.297293]
[1645184740612,0.0882597,40397.0,40385.0,0.64515679]
[1645184740809,0.0882597,40397.0,40387.0,0.6214]
[1645184741009,0.0033597,40397.0,40390.0,0.26523481]
[1645184741208,0.0033597,40397.0,40391.0,0.0497]
[1645184741409,0.0033597,40397.0,40392.0,0.62810751]
[1645184741612,0.0033597,40397.0,40392.0,0.67780751]
[1645184741807,0.0033597,40397.0,40392.0,0.77780751]
[1645184742607,0.0010506,40399.0,40395.0,0.7]
[1645184742811,0.0010506,40399.0,40397.0,0.123762]
[1645184743009,0.0010506,40399.0,40398.0,0.0497]
[1645184743863,0.00017129,40400.0,40399.0,0.55]